bitfinex-derivatives/quotes_BTCF0:USTF0_20241029
["timestamp","ask_amount","ask_price","bid_price","bid_amount"]
[1730230301030,9.912e-05,72789.0,72783.0,0.13604]
[1730230301532,9.912e-05,72789.0,72782.0,0.38066624]
[1730230301738,9.912e-05,72789.0,72783.0,0.068693]
[1730230301940,9.912e-05,72789.0,72782.0,0.38066624]
[1730230302141,9.912e-05,72789.0,72782.0,0.01986624]
[1730230302343,9.912e-05,72789.0,72779.0,0.04086433]
[1730230302643,9.912e-05,72789.0,72784.0,0.068692]
[1730230302938,9.912e-05,72789.0,72780.0,0.04086433]
[1730230302939,9.912e-05,72789.0,72788.0,0.30477618]
[1730230303138,0.00206129,72802.0,72788.0,0.30477618]
[1730230303139,0.00206129,72802.0,72788.0,0.80161618]
[1730230303344,0.3608,72806.0,72801.0,0.068676]
[1730230303942,0.3608,72806.0,72796.0,0.04086433]
[1730230304241,6.119e-05,72805.0,72797.0,0.04086433]
[1730230304437,0.3608,72823.0,72804.0,0.30477618]
[1730230304638,0.3608,72823.0,72803.0,0.40166433]
[1730230304639,0.3608,72823.0,72822.0,0.37343318]
[1730230304839,0.3608,72834.0,72827.0,0.068652]
[1730230305039,0.068646,72833.0,72822.0,0.13676]
[1730230305239,0.068646,72833.0,72823.0,0.068656]
[1730230305443,0.3608,72834.0,72822.0,0.13604]
[1730230305641,0.068651,72828.0,72822.0,0.13604]
[1730230305937,0.3608,72827.0,72820.0,0.068658]
[1730230306144,0.3608,72827.0,72821.0,0.13604]
[1730230306341,0.429453,72827.0,72821.0,0.13604]
[1730230306541,0.068657,72822.0,72821.0,0.13604]
[1730230306743,0.429452,72827.0,72814.0,0.27922]
[1730230307048,0.068664,72814.0,72813.0,0.3608]
[1730230307839,0.068668,72810.0,72807.0,0.00206011]
[1730230308037,0.3608,72808.0,72807.0,0.00206011]
[1730230308241,0.3608,72808.0,72807.0,0.00394777]
[1730230308439,1.92947,72808.0,72807.0,0.00394777]
[1730230309433,1.8608,72808.0,72807.0,0.00394777]
[1730230309834,0.3608,72808.0,72807.0,0.48465877]
[1730230310243,0.3608,72822.0,72808.0,0.068669]
[1730230310449,0.3608,72809.0,72807.0,0.00394777]
[1730230310650,0.3608,72816.0,72812.0,0.068666]
[1730230310943,0.65292518,72831.0,72808.0,0.30477618]
[1730230310944,0.00206086,72835.0,72815.0,1.02637618]
[1730230311144,0.00206086,72835.0,72827.0,0.3608]
[1730230311336,0.06676234,72830.0,72827.0,0.3608]
[1730230311942,1.5,72829.0,72827.0,0.3608]
[1730230312146,0.068651,72828.0,72827.0,0.3608]
[1730230312544,0.00206086,72835.0,72827.0,0.3608]
[1730230312545,0.068647,72833.0,72827.0,0.66557618]
[1730230312753,1.5,72828.0,72827.0,0.66557618]
[1730230313144,1.5,72828.0,72827.0,0.3608]
[1730230313650,1.568651,72828.0,72822.0,0.3608]
[1730230313848,1.5,72828.0,72821.0,0.01996014]
[1730230314038,1.5,72828.0,72820.0,0.8432344]
[1730230314039,0.068653,72826.0,72820.0,0.80245618]
[1730230314242,0.068653,72826.0,72820.0,0.8423944]
[1730230314438,1.5008,72828.0,72821.0,0.04077822]
[1730230314652,1.568652,72828.0,72822.0,0.04077822]
[1730230314948,1.568652,72828.0,72820.0,0.15570332]
[1730230314949,1.5,72828.0,72824.0,0.04077822]
[1730230315143,1.5,72828.0,72820.0,0.15570332]
[1730230315349,1.5,72828.0,72826.0,0.04088659]
[1730230315648,0.068653,72826.0,72823.0,0.05436415]
[1730230315946,0.068653,72826.0,72822.0,0.05436415]
[1730230316346,0.068653,72826.0,72822.0,0.12302115]
[1730230316643,0.068657,72822.0,72821.0,0.05436415]
[1730230316843,0.66557618,72823.0,72816.0,0.05436415]
[1730230317045,0.068658,72821.0,72820.0,0.04091956]
[1730230317255,0.66557618,72823.0,72819.0,0.04092047]
[1730230317451,0.66557618,72823.0,72821.0,0.04092715]
[1730230317652,0.068657,72822.0,72821.0,0.04092715]
[1730230317858,0.3608,72825.0,72817.0,0.05436415]
[1730230318147,0.3608,72825.0,72820.0,0.04092561]
[1730230318353,0.068659,72819.0,72818.0,0.04092561]
[1730230318655,0.068659,72819.0,72816.0,0.05436415]
[1730230318848,0.068661,72817.0,72816.0,0.05436415]
[1730230319046,0.30477618,72818.0,72815.0,0.040939]
[1730230319351,0.30477618,72818.0,72815.0,0.04094034]
[1730230319352,0.068662,72816.0,72815.0,0.04094034]
[1730230319547,0.068663,72815.0,72813.0,0.04094034]
[1730230319742,0.068663,72815.0,72807.0,0.00206011]
[1730230319743,0.068665,72813.0,72812.0,0.04094034]
[1730230319950,1.8608,72813.0,72811.0,0.04094034]
[1730230320141,0.068667,72811.0,72810.0,0.04094034]
[1730230320553,0.06867,72808.0,72807.0,0.00206011]
[1730230321643,0.480711,72807.0,72806.0,0.04102661]
[1730230321847,0.90017618,72807.0,72805.0,0.04102661]
[1730230322043,0.6608,72806.0,72801.0,0.04102661]
[1730230322353,0.6608,72806.0,72782.0,0.0819102]
[1730230322354,0.068689,72788.0,72782.0,0.0819102]
[1730230322655,0.30477618,72788.0,72777.0,0.0200485]
[1730230322856,0.068697,72780.0,72779.0,0.068696]
[1730230323249,0.30477618,72782.0,72777.0,0.088099]
[1730230323250,0.068698,72778.0,72777.0,0.088099]
[1730230323456,0.30477618,72782.0,72777.0,0.0194]
[1730230323754,0.3608,72784.0,72783.0,0.068693]
[1730230323949,0.3608,72784.0,72777.0,0.0194]
[1730230323950,0.3608,72784.0,72779.0,0.068697]
[1730230324154,0.3608,72784.0,72777.0,0.0194]
[1730230324348,0.3608,72784.0,72783.0,0.068693]
[1730230324550,0.068696,72780.0,72777.0,0.088098]
[1730230324946,0.30477618,72781.0,72777.0,0.0194]
[1730230325147,0.068698,72778.0,72777.0,0.0194]
[1730230325755,1.568698,72778.0,72777.0,0.0194]
[1730230326454,1.5,72778.0,72777.0,0.088099]
[1730230327154,0.30477618,72793.0,72777.0,0.088099]
[1730230327155,0.068689,72788.0,72777.0,0.0194]
[1730230327356,0.068691,72786.0,72782.0,0.068694]
[1730230327554,0.068695,72782.0,72779.0,0.3608]
[1730230327952,0.30477618,72788.0,72777.0,0.0194]
[1730230327953,0.30477618,72781.0,72777.0,0.0194]
[1730230328260,0.068698,72778.0,72777.0,0.0194]
[1730230329555,1.568698,72778.0,72777.0,0.0194]
[1730230330559,1.5,72778.0,72777.0,0.0194]
[1730230330752,0.3608,72783.0,72777.0,0.0194]
[1730230330953,0.429494,72783.0,72777.0,0.0194]
[1730230331152,0.3608,72783.0,72777.0,0.0194]
[1730230331463,0.068698,72779.0,72777.0,0.0194]
[1730230331754,0.3608,72783.0,72777.0,0.0194]
[1730230331755,0.068695,72781.0,72777.0,0.0194]
[1730230331965,0.068697,72780.0,72777.0,0.0194]
[1730230332163,0.3608,72783.0,72777.0,0.0194]
[1730230332164,0.068698,72778.0,72777.0,0.0194]
[1730230332557,0.67893995,72778.0,72777.0,0.0194]
[1730230332857,0.67893995,72778.0,72757.0,0.3608]
[1730230332858,0.068712,72763.0,72754.0,0.00015047]
[1730230333054,0.3608,72763.0,72754.0,0.00015047]
[1730230333251,0.26676195,72755.0,72754.0,0.00015047]
[1730230334055,1.56872,72755.0,72754.0,0.00015047]
[1730230334258,1.5,72755.0,72754.0,0.00231424]
[1730230335156,1.5,72755.0,72754.0,0.07103524]
[1730230335355,1.5,72755.0,72754.0,0.00231424]
[1730230336161,2.2348403,72755.0,72754.0,0.00231424]
[1730230338353,2.6472003,72755.0,72754.0,0.00231424]
[1730230340352,2.6472003,72755.0,72754.0,0.00216377]
[1730230341259,2.2348403,72755.0,72754.0,0.00216377]
[1730230341458,1.92952,72755.0,72754.0,0.00216377]
[1730230342058,2.2348403,72755.0,72754.0,0.00216377]
[1730230342362,0.7348403,72755.0,72754.0,0.00216377]
[1730230342558,0.7348403,72755.0,72754.0,0.07088477]
[1730230342559,0.42952,72755.0,72754.0,0.07088477]
[1730230342757,0.7348403,72755.0,72754.0,0.00216377]
[1730230343063,2.2348403,72755.0,72754.0,0.00216377]
[1730230345266,1.92952,72755.0,72754.0,0.00216377]
[1730230345771,2.34188,72755.0,72754.0,0.00216377]
[1730230346064,2.34188,72755.0,72722.0,0.3608]
[1730230346065,0.06873,72744.0,72722.0,0.3608]
[1730230346271,0.3740643,72729.0,72722.0,0.3608]
[1730230346561,0.3608,72739.0,72730.0,0.068743]
[1730230346762,0.068746,72727.0,72722.0,0.429551]
[1730230346958,0.3053203,72736.0,72722.0,0.3608]
[1730230347464,0.3053203,72724.0,72722.0,0.3608]
[1730230347659,0.3053203,72724.0,72710.0,0.068762]
[1730230347962,0.068766,72706.0,72705.0,0.01675819]
[1730230348263,0.6661203,72706.0,72689.0,0.3608]
[1730230348466,1.5,72696.0,72689.0,0.3608]
[1730230348673,0.068777,72695.0,72689.0,0.3608]
[1730230348856,1.5,72696.0,72692.0,0.068779]
[1730230349061,1.5,72696.0,72695.0,0.068777]
[1730230349468,1.5,72696.0,72689.0,0.3608]
[1730230349469,0.068778,72694.0,72689.0,0.3608]
[1730230349662,0.3053203,72691.0,72687.0,0.01669307]
[1730230349866,0.068785,72686.0,72670.0,0.3608]
[1730230350064,0.429585,72686.0,72670.0,0.3608]
[1730230350267,0.429585,72686.0,72664.0,0.3608]
[1730230350464,0.429585,72686.0,72672.0,0.01650057]
[1730230350763,0.429585,72686.0,72672.0,0.37730057]
[1730230350970,0.842305,72686.0,72667.0,0.068803]
[1730230351270,0.842305,72686.0,72665.0,0.068805]
[1730230351475,2.342305,72686.0,72685.0,0.00710278]
[1730230351670,2.342305,72686.0,72685.0,7.8e-07]
[1730230352270,0.068808,72662.0,72661.0,0.00206402]
[1730230352467,0.068808,72662.0,72639.0,0.3608]
[1730230352468,0.3608,72662.0,72649.0,0.01648427]
[1730230352670,0.3608,72662.0,72661.0,0.068809]
[1730230352872,1.8608,72662.0,72661.0,0.068809]
[1730230353064,1.5,72662.0,72661.0,0.068809]
[1730230354568,0.3608,72666.0,72653.0,0.13812]
[1730230354885,0.3053203,72668.0,72662.0,0.3608]
[1730230355069,0.3608,72674.0,72662.0,0.3608]
[1730230355272,0.3608,72682.0,72670.0,0.3608]
[1730230355466,0.3608,72682.0,72671.0,0.13812]
[1730230355661,0.3608,72682.0,72671.0,0.3]
[1730230355962,0.3608,72682.0,72672.0,0.13812]
[1730230356176,0.3053203,72687.0,72677.0,0.3608]
[1730230356362,0.068786,72685.0,72677.0,0.3608]
[1730230356567,0.3608,72683.0,72682.0,0.068789]
[1730230356874,0.3608,72713.0,72682.0,0.6906003]
[1730230357065,0.13812,72741.0,72703.0,0.7348893]
[1730230357066,0.3608,72723.0,72703.0,0.7348893]
[1730230357263,0.3608,72723.0,72699.0,0.3608]
[1730230357264,0.3608,72710.0,72705.0,0.068766]
[1730230357467,0.3053203,72706.0,72696.0,0.068776]
[1730230357666,0.3608,72699.0,72698.0,0.068774]
[1730230358367,0.3608,72699.0,72691.0,0.13812]
[1730230358770,0.3608,72699.0,72692.0,0.068779]
[1730230358968,0.3608,72699.0,72698.0,0.068774]
[1730230359578,0.3608,72699.0,72698.0,0.481454]
[1730230360772,0.3608,72699.0,72694.0,0.3053203]
[1730230360773,0.6661203,72699.0,72694.0,0.13812]
[1730230360976,0.068777,72695.0,72694.0,0.13812]
[1730230361170,1.0269203,72699.0,72678.0,0.3608]
[1730230361379,0.068787,72684.0,72678.0,0.3608]
[1730230361577,0.3053203,72686.0,72678.0,0.3608]
[1730230361777,0.068793,72678.0,72677.0,0.13812]
[1730230361981,0.3053203,72680.0,72671.0,0.26440969]
[1730230362184,0.068798,72672.0,72671.0,0.01660969]
[1730230362381,0.3053203,72673.0,72662.0,0.52546425]
[1730230362676,0.3053203,72666.0,72662.0,0.14018425]
[1730230362881,0.3608,72676.0,72662.0,0.00206425]
[1730230362882,0.068804,72667.0,72662.0,0.00206425]
[1730230363073,0.3053203,72672.0,72662.0,0.00206425]
[1730230363473,0.068804,72667.0,72662.0,0.00206425]
[1730230363774,0.3608,72676.0,72666.0,0.3608]
[1730230363972,0.068798,72672.0,72666.0,0.3608]
[1730230364180,0.3608,72676.0,72669.0,0.0688]
[1730230364571,0.3608,72670.0,72662.0,0.00206425]
[1730230364974,0.068807,72663.0,72662.0,0.00206425]
[1730230365578,1.568807,72663.0,72662.0,0.00206425]
[1730230365980,0.068822,72647.0,72632.0,0.13812]
[1730230366185,0.068822,72647.0,72625.0,0.3053203]
[1730230366186,0.3741423,72647.0,72640.0,0.01595704]
[1730230366477,0.068829,72640.0,72633.0,0.01815093]
[1730230366705,0.7349543,72634.0,72633.0,0.00206513]
[1730230366874,1.5,72635.0,72633.0,0.00206513]
[1730230367474,1.5,72635.0,72633.0,0.30738543]
[1730230367475,0.00011288,72634.0,72633.0,0.30738543]
[1730230367674,0.36091288,72634.0,72633.0,0.30738543]
[1730230367878,0.36091288,72634.0,72633.0,0.00206513]
[1730230368475,0.66623318,72634.0,72633.0,0.00206513]
[1730230369277,0.73506718,72634.0,72633.0,0.00206513]
[1730230369679,0.36091288,72634.0,72633.0,0.00206513]
[1730230370784,1.07384,72634.0,72605.0,0.3608]
[1730230370980,0.3053203,72608.0,72601.0,0.00010622]
[1730230371281,0.068863,72604.0,72601.0,0.0163565]
[1730230371479,0.3053203,72602.0,72601.0,0.00010622]
[1730230372390,1.50092123,72607.0,72601.0,0.41330622]
[1730230372578,0.3608,72609.0,72607.0,0.068859]
[1730230372878,0.3608,72609.0,72605.0,0.068861]
[1730230373082,0.3608,72609.0,72608.0,0.068859]
[1730230373581,0.3608,72609.0,72608.0,0.482019]
[1730230373780,0.429658,72609.0,72601.0,0.00010622]
[1730230373977,0.3053203,72604.0,72601.0,0.00010622]
[1730230374179,0.3608,72609.0,72604.0,0.068863]
[1730230374375,0.3608,72609.0,72601.0,0.00010622]
[1730230374573,0.3053203,72629.0,72606.0,0.3608]
[1730230374880,0.3053203,72629.0,72619.0,0.3608]
[1730230375075,0.3608,72632.0,72627.0,0.06884]
[1730230375271,0.3053203,72636.0,72620.0,0.84319458]
[1730230375272,0.3608,72634.0,72620.0,0.84319458]
[1730230375478,0.3608,72634.0,72625.0,0.3608]
[1730230375781,0.3608,72634.0,72628.0,0.22054926]
[1730230375986,0.3608,72634.0,72629.0,0.068839]
[1730230376183,0.3608,72634.0,72625.0,0.3608]
[1730230376384,0.06884,72628.0,72621.0,0.00076]
[1730230376577,0.06884,72628.0,72620.0,0.248]
[1730230376578,0.3053203,72624.0,72620.0,0.248]
[1730230376773,0.3608,72622.0,72620.0,0.248]
[1730230376973,0.3053203,72624.0,72620.0,0.248]
[1730230377282,0.429647,72621.0,72615.0,0.10856]
[1730230377673,0.3608,72621.0,72615.0,0.10856]
[1730230377878,0.3608,72621.0,72616.0,0.87643689]
[1730230378183,0.3608,72621.0,72620.0,0.068848]
[1730230378378,0.3608,72621.0,72620.0,0.481968]
[1730230378887,0.3608,72621.0,72620.0,0.55308]
[1730230379076,0.3608,72621.0,72620.0,0.621928]
[1730230379477,0.3608,72621.0,72620.0,0.921928]
[1730230379677,0.3608,72627.0,72620.0,1.57588329]
[1730230379875,0.3608,72637.0,72636.0,0.068832]
[1730230380081,0.3608,72659.0,72637.0,0.3]
[1730230380281,0.3608,72659.0,72658.0,0.3053203]
[1730230380488,0.3608,72659.0,72656.0,0.208773]
[1730230380679,0.3608,72659.0,72658.0,0.51877314]
[1730230380879,0.3608,72670.0,72658.0,1.22364114]
[1730230381078,0.0020649,72678.0,72669.0,0.3053203]
[1730230381285,0.0020649,72678.0,72667.0,0.3608]
[1730230381286,0.3053203,72675.0,72667.0,0.3608]
[1730230381479,0.3053203,72675.0,72658.0,0.35123483]
[1730230381480,0.3053203,72669.0,72658.0,0.00072]
[1730230381679,0.0020649,72678.0,72662.0,0.068808]
[1730230381680,0.068797,72674.0,72662.0,0.068808]
[1730230381875,0.0020649,72678.0,72662.0,0.068808]
[1730230382389,0.068796,72675.0,72665.0,0.068805]
[1730230382587,0.0020649,72678.0,72671.0,0.3053203]
[1730230382787,0.5584203,72702.0,72668.0,0.3608]
[1730230382788,0.068781,72691.0,72679.0,0.068791]
[1730230382988,0.3608,72695.0,72683.0,0.3608]
[1730230383191,0.068778,72694.0,72686.0,0.068785]
[1730230383396,0.068769,72703.0,72683.0,0.3608]
[1730230383689,0.06876,72713.0,72706.0,0.068766]
[1730230383880,0.3608,72717.0,72712.0,0.3053203]
[1730230384085,0.068746,72728.0,72720.0,0.068753]
[1730230384282,0.0020634,72731.0,72721.0,0.3608]
[1730230384477,0.06875,72724.0,72722.0,0.13992]
[1730230384680,0.068749,72724.0,72722.0,0.13992]
[1730230384878,0.3608,72724.0,72715.0,0.13992]
[1730230385093,0.068752,72721.0,72715.0,0.13992]
[1730230385280,0.068757,72716.0,72715.0,0.13992]
[1730230385586,0.068752,72721.0,72715.0,0.13992]
[1730230385794,0.3608,72724.0,72718.0,0.3053203]
[1730230385983,0.068747,72727.0,72723.0,0.3608]
[1730230386984,0.0020634,72731.0,72730.0,0.068743]
[1730230387187,0.0020634,72731.0,72730.0,0.208663]
[1730230387489,0.3608,72735.0,72731.0,0.068742]
[1730230387687,0.3608,72735.0,72723.0,0.3608]
[1730230387688,0.3608,72735.0,72725.0,0.068747]
[1730230387891,0.3608,72735.0,72733.0,0.06874]
[1730230388087,0.3608,72743.0,72734.0,0.06874]
[1730230388287,0.3608,72743.0,72742.0,0.068732]
[1730230388596,0.3608,72743.0,72742.0,0.208612]
[1730230388781,0.002063,72746.0,72745.0,0.068729]
[1730230389179,0.3053203,72749.0,72741.0,0.3608]
[1730230389379,1.5,72743.0,72741.0,0.50068]
[1730230389591,1.5,72743.0,72727.0,0.01847962]
[1730230389787,0.3608,72739.0,72727.0,0.01847962]
[1730230389989,0.068745,72728.0,72727.0,0.00206246]
[1730230391386,1.568745,72728.0,72727.0,0.00206246]
[1730230391889,0.068762,72710.0,72702.0,0.3608]
[1730230392585,1.568762,72710.0,72702.0,0.3608]
[1730230392785,1.929562,72710.0,72697.0,0.00206319]
[1730230393186,0.068774,72698.0,72697.0,0.00206319]
[1730230393387,0.3608,72698.0,72697.0,0.00206319]
[1730230393593,0.429574,72698.0,72697.0,0.00206319]
[1730230393789,1.929574,72698.0,72697.0,0.00186319]
[1730230394092,0.068783,72688.0,72683.0,0.3608]
[1730230394391,0.06889438,72697.0,72683.0,0.3608]
[1730230394585,0.06889438,72697.0,72689.0,0.068782]
[1730230394790,0.00011938,72697.0,72696.0,0.3608]
[1730230395088,0.3608,72712.0,72701.0,0.068771]
[1730230395289,0.068764,72708.0,72702.0,0.13984]
[1730230395484,0.068764,72708.0,72702.0,0.50064]
[1730230395881,4.77e-05,72707.0,72702.0,0.50064]
[1730230396499,4.77e-05,72707.0,72706.0,0.068766]
[1730230396995,0.3608,72740.0,72706.0,1.06320308]
[1730230397184,0.3608,72740.0,72720.0,0.3608]
[1730230397384,0.3608,72740.0,72733.0,0.3608]
[1730230397695,0.3608,72740.0,72736.0,0.068737]
[1730230397899,0.3608,72750.0,72739.0,0.3608]
[1730230398091,0.3608,72750.0,72737.0,0.28909957]
[1730230398092,0.05296234,72749.0,72737.0,0.28909957]
[1730230398296,0.05296234,72748.0,72737.0,0.13984]
[1730230398492,0.05296234,72747.0,72742.0,0.068732]
[1730230398792,0.3608,72750.0,72745.0,0.068729]
[1730230398997,0.0529535,72749.0,72746.0,0.3053203]
[1730230399299,0.05165112,72748.0,72746.0,0.3053203]
[1730230399489,0.3608,72750.0,72746.0,0.3740483]
[1730230399687,0.05167103,72749.0,72748.0,0.068726]
[1730230399883,0.3608,72750.0,72746.0,0.3053203]
[1730230400190,0.3608,72760.0,72759.0,0.068716]
[1730230400391,0.3608,72760.0,72759.0,0.5138763]
[1730230400590,0.3608,72760.0,72759.0,0.9261963]
[1730230401100,0.3608,72760.0,72759.0,0.5138763]
[1730230401292,0.3608,72760.0,72759.0,1.38327339]
[1730230401489,0.3608,72760.0,72759.0,1.59034586]
[1730230401990,0.3608,72760.0,72759.0,1.29034586]
[1730230402194,0.3608,72760.0,72759.0,0.36563309]
[1730230402386,0.3608,72760.0,72759.0,0.920876]
[1730230402694,0.3608,72760.0,72759.0,1.2856085]
[1730230402894,0.36286217,72774.0,72759.0,1.2856085]
[1730230403099,0.05153017,72773.0,72770.0,0.3053203]
[1730230403306,0.36286217,72774.0,72771.0,0.068705]
[1730230403493,0.36286217,72774.0,72773.0,0.068703]
[1730230403699,0.41259303,72774.0,72773.0,0.068703]
[1730230403900,0.41259303,72774.0,72773.0,0.63745285]
[1730230404099,0.41259303,72774.0,72765.0,0.3608]
[1730230404394,0.41259303,72774.0,72771.0,0.068704]
[1730230404395,0.05179303,72773.0,72771.0,0.068704]
[1730230404796,0.3608,72774.0,72771.0,0.068704]
[1730230405095,0.3608,72774.0,72763.0,0.3608]
[1730230405299,0.3608,72768.0,72762.0,0.068713]
[1730230405498,0.3608,72768.0,72760.0,0.1398]
[1730230405800,0.3608,72768.0,72761.0,0.13976]
[1730230405998,0.3608,72762.0,72758.0,0.00084]
[1730230406199,0.3608,72762.0,72757.0,0.00206161]
[1730230406705,0.3608,72777.0,72758.0,1.37652428]
[1730230407000,0.3608,72777.0,72769.0,0.068706]
[1730230407298,1.50084,72782.0,72769.0,0.3608]
[1730230407503,0.00084,72782.0,72773.0,0.3053203]
[1730230407705,0.3608,72783.0,72770.0,0.358879]
[1730230407706,0.3608,72783.0,72774.0,0.1344]
[1730230408202,0.3608,72783.0,72769.0,0.3608]
[1730230408503,0.3053203,72772.0,72757.0,0.00206161]
[1730230408694,0.068713,72762.0,72757.0,0.00206161]
[1730230408896,0.068714,72761.0,72757.0,0.00206161]
[1730230409296,0.3608,72766.0,72757.0,0.00206161]
[1730230409596,1.5,72760.0,72757.0,0.00206161]
[1730230410096,0.3608,72759.0,72757.0,0.00206161]
[1730230410292,0.3608,72759.0,72758.0,0.068717]
[1730230411107,0.3608,72759.0,72758.0,0.203117]
[1730230411403,0.3608,72759.0,72758.0,0.1344]
[1730230413101,0.3608,72759.0,72757.0,0.00206161]
[1730230413608,0.3608,72759.0,72744.0,0.06878]
[1730230413609,0.77312,72759.0,72744.0,0.06878]
[1730230413900,0.3053203,72745.0,72727.0,0.00206232]
[1730230414205,0.3608,72737.0,72728.0,0.1344]
[1730230414499,0.3608,72737.0,72730.0,0.068743]
[1730230414699,0.3608,72737.0,72729.0,0.203144]
[1730230414900,0.3608,72737.0,72736.0,0.3053203]
[1730230415105,0.3608,72737.0,72736.0,0.3740583]
[1730230415307,0.3608,72746.0,72745.0,0.068729]
[1730230415498,0.3608,72746.0,72745.0,0.3740493]
[1730230415898,0.3608,72746.0,72739.0,0.3053203]
[1730230416102,0.3608,72746.0,72736.0,0.3608]
[1730230416300,0.3608,72737.0,72726.0,0.21978795]
[1730230416496,0.068741,72733.0,72726.0,0.21978795]
[1730230416699,0.068742,72732.0,72726.0,0.21978795]
[1730230416899,0.3608,72737.0,72726.0,0.1344]
[1730230417106,0.3608,72737.0,72724.0,0.1344]
[1730230417313,0.3608,72737.0,72736.0,0.3740583]
[1730230417511,0.3608,72737.0,72730.0,0.3053203]
[1730230417804,0.3608,72737.0,72736.0,0.068738]
[1730230418010,0.3608,72737.0,72730.0,0.3053203]
[1730230418209,0.06874,72734.0,72728.0,0.13444]
[1730230418408,0.06874,72734.0,72727.0,0.07080832]
[1730230418707,0.3608,72737.0,72727.0,0.07080832]
[1730230418708,0.3608,72728.0,72727.0,0.07080832]
[1730230419213,0.3608,72728.0,72727.0,0.00206232]
[1730230419408,0.068743,72731.0,72727.0,0.00206232]
[1730230420207,0.068744,72730.0,72727.0,0.00206232]
[1730230420510,0.3608,72731.0,72727.0,0.00206232]
[1730230420709,0.068745,72728.0,72727.0,0.00206232]
[1730230420906,0.068745,72728.0,72717.0,0.00017543]
[1730230420907,0.068755,72718.0,72717.0,0.00017543]
[1730230422207,0.068764,72709.0,72703.0,0.3608]
[1730230422409,0.068755,72718.0,72703.0,0.3608]
[1730230422410,0.068766,72706.0,72703.0,0.3608]
[1730230422804,0.068762,72711.0,72703.0,0.3608]
[1730230423005,0.068762,72710.0,72704.0,0.068768]
[1730230423207,1.86152,72721.0,72709.0,0.6661203]
[1730230423507,0.3608,72721.0,72720.0,0.3740733]
[1730230423703,0.36091636,72721.0,72720.0,0.3740733]
[1730230425311,0.36091636,72721.0,72719.0,0.13444]
[1730230426022,0.42966936,72721.0,72719.0,0.13444]
[1730230426517,0.06886936,72721.0,72715.0,0.068757]
[1730230426819,0.06886936,72721.0,72716.0,0.13444]
[1730230427813,0.06886936,72721.0,72716.0,0.203196]
[1730230428014,0.06886936,72721.0,72715.0,0.13444]
[1730230428210,0.00011636,72721.0,72715.0,0.13444]
[1730230428413,0.00011636,72721.0,72720.0,0.068753]
[1730230428919,0.00011636,72721.0,72720.0,0.27632175]
[1730230429110,1.5,72733.0,72732.0,0.068742]
[1730230429413,1.5,72733.0,72732.0,0.196382]
[1730230430214,1.50005907,72733.0,72732.0,0.196382]
[1730230430412,5.907e-05,72733.0,72732.0,0.196382]
[1730230431006,1.50005907,72733.0,72732.0,0.196382]
[1730230431210,5.907e-05,72733.0,72732.0,0.196382]
[1730230431412,5.907e-05,72733.0,72732.0,0.4023103]
[1730230431812,5.907e-05,72733.0,72732.0,0.45666852]
[1730230432214,5.907e-05,72733.0,72732.0,0.86914852]
[1730230432420,5.907e-05,72733.0,72732.0,0.97333142]
[1730230432719,1.5,72748.0,72747.0,0.068727]
[1730230432919,0.3608,72756.0,72747.0,0.4329603]
[1730230433107,0.3608,72756.0,72755.0,0.3053203]
[1730230433314,1.8608,72756.0,72755.0,0.3053203]
[1730230433612,1.929519,72756.0,72755.0,0.3053203]
[1730230434316,0.068732,72742.0,72740.0,0.05663591]
[1730230434617,2.5784403,72756.0,72740.0,0.00206207]
[1730230434618,0.068733,72741.0,72740.0,0.00206207]
[1730230435621,0.3608,72745.0,72740.0,0.00206207]
[1730230435816,0.068728,72747.0,72744.0,0.3053203]
[1730230436011,0.3608,72749.0,72744.0,0.3740493]
[1730230436425,0.3608,72749.0,72745.0,0.068729]
[1730230436610,0.429526,72749.0,72745.0,0.068729]
[1730230436815,0.068727,72747.0,72744.0,0.3053203]
[1730230437019,0.3608,72749.0,72745.0,0.12764]
[1730230437321,0.3608,72749.0,72740.0,0.00206207]
[1730230437322,0.068733,72741.0,72740.0,0.00206207]
[1730230437619,0.429533,72741.0,72740.0,0.00206207]
[1730230438119,0.429533,72741.0,72733.0,0.01635916]
[1730230438120,0.06874,72734.0,72733.0,0.01635916]
[1730230438715,0.06874,72734.0,72717.0,0.00206248]
[1730230438716,0.068755,72718.0,72717.0,0.00206248]
[1730230439117,0.3608,72722.0,72721.0,0.068752]
[1730230439517,1.8608,72722.0,72717.0,0.43502278]
[1730230439721,0.068755,72718.0,72717.0,0.00206248]
[1730230441620,1.86152,72722.0,72717.0,0.00206248]
[1730230441828,1.8608,72722.0,72721.0,0.068752]
[1730230442020,0.068753,72720.0,72717.0,0.37613878]
[1730230442220,1.8608,72722.0,72717.0,0.30738278]
[1730230442221,1.86152,72722.0,72717.0,0.30738278]
[1730230442529,1.8608,72722.0,72721.0,0.12350231]
[1730230442716,1.929551,72722.0,72721.0,0.05475031]
[1730230442921,1.929551,72722.0,72721.0,0.068752]
[1730230442922,1.8608,72722.0,72721.0,0.068752]
[1730230443327,1.8608,72722.0,72717.0,0.00206248]
[1730230443328,1.929552,72722.0,72717.0,0.00206248]
[1730230443530,0.068753,72720.0,72717.0,0.00206248]
[1730230443727,0.36152,72722.0,72721.0,0.068752]
[1730230443921,0.3608,72734.0,72730.0,0.068743]
[1730230444129,0.3608,72734.0,72732.0,0.36010189]
[1730230444323,0.3608,72734.0,72733.0,0.068741]
[1730230444524,0.3608,72734.0,72733.0,0.13663847]
[1730230444725,0.3608,72734.0,72733.0,0.14731332]
[1730230445432,1.8608,72734.0,72733.0,0.14731332]
[1730230445628,1.8608,72734.0,72733.0,0.14729334]
[1730230445825,1.8608,72734.0,72733.0,0.08464743]
[1730230446024,1.8608,72734.0,72733.0,0.2317223]
[1730230446229,1.8608,72734.0,72733.0,0.16325251]
[1730230446629,0.3608,72734.0,72733.0,0.31975375]
[1730230447025,1.8608,72734.0,72733.0,0.31975375]
[1730230447227,0.3608,72734.0,72733.0,0.31975375]
[1730230447521,0.3608,72734.0,72733.0,0.44739375]
[1730230449528,0.3608,72734.0,72733.0,0.09451151]
[1730230449723,0.3608,72734.0,72733.0,0.01590643]